fUSD/lending_fUSD_20260224
["ID","MTS","AMOUNT","RATE_DAILY","PERIOD"]
[406542820,1771926803123,-500.0,0.00045479,2]
[406542821,1771926803133,-500.0,0.00045479,2]
[406542822,1771926803143,-500.0,0.00045479,2]
[406542823,1771926803153,-500.0,0.00045479,2]
[406542824,1771926803163,-500.0,0.00045479,2]
[406542825,1771926803172,-173.07580419,0.00045479,2]
[406542826,1771926803181,-500.0,0.00045479,120]
[406542827,1771926803191,-1029.93288924,0.00045479,60]
[406542828,1771926803201,-970.8014342,0.00045479,30]
[406542829,1771926803210,-500.0,0.00045479,120]
[406542830,1771926803220,-511.89208139,0.00045479,120]
[406542831,1771926803231,-518.82675277,0.00045479,120]
[406542832,1771926803240,-512.31317575,0.00045479,120]
[406542833,1771926803249,-575.62907284,0.00045479,120]
[406542834,1771926803258,-513.27924127,0.00045479,120]
[406542835,1771926803267,-505.23203837,0.00045479,120]
[406542836,1771926803277,-512.28001095,0.00045479,120]
[406542837,1771926803286,-554.72,0.00045479,120]
[406542838,1771926803296,-511.60922014,0.00045479,120]
[406542839,1771926803305,-518.59830317,0.00045479,120]
[406542840,1771926803315,-517.03172875,0.00045479,120]
[406542841,1771926803324,-504.42834784,0.00045479,120]
[406542842,1771926803334,-500.0,0.00045479,120]
[406542843,1771926803343,-514.5365147,0.00045479,120]
[406542844,1771926803352,-514.30584625,0.00045479,120]
[406542845,1771926803363,-518.50800056,0.00045479,120]
[406542846,1771926803373,-222.54610745,0.00045479,120]
[406542847,1771926803382,-261.34928323,0.00045479,120]
[406542848,1771926803392,-514.26743648,0.00045479,120]
[406542849,1771926803401,-504.08968646,0.00045479,120]
[406542850,1771926803411,-510.25938316,0.00045479,120]
[406542851,1771926803420,-500.0,0.00045479,120]
[406542852,1771926803431,-386.00500949,0.00045479,120]
[406542853,1771926803442,-533.99991386,0.00045479,120]
[406542854,1771926803451,-541.8842399,0.00045479,60]
[406542855,1771926803614,-512.04796066,0.00045479,120]
[406542856,1771926803623,-586.31409844,0.00045479,120]
[406542857,1771926803633,-514.58209097,0.00045479,120]
[406542858,1771926803642,-500.0,0.00045479,120]
[406542859,1771926803651,-305.98,0.00045479,120]
[406542860,1771926803661,-510.19090453,0.00045479,120]
[406542861,1771926803670,-513.1086199,0.00045479,120]
[406542862,1771926803679,-500.0,0.00045479,120]
[406542863,1771926803688,-405.56727065,0.00045479,120]
[406542864,1771926803698,-533.48478164,0.00045479,120]
[406542865,1771926803708,-331.24205404,0.00045479,120]
[406542866,1771926803717,-535.10610763,0.00045479,120]
[406542867,1771926803727,-520.19278991,0.00045479,120]
[406542868,1771926803737,-516.08532652,0.00045479,120]
[406542869,1771926803746,-500.0,0.00045479,120]
[406542870,1771926803756,-156.0,0.00045479,60]
[406542871,1771926803766,-800.0,0.00045479,120]
[406542872,1771926803776,-476.80517564,0.00045479,120]
[406542873,1771926803785,-910.08,0.00045479,120]
[406542874,1771926803795,-910.08,0.00045479,120]
[406542875,1771926803804,-910.08,0.00045479,120]
[406542876,1771926803813,-910.08,0.00045479,120]
[406542877,1771926803822,-910.08,0.00045479,120]
[406542878,1771926803832,-910.08,0.00045479,120]
[406542879,1771926803842,-910.08,0.00045479,120]
[406542880,1771926803852,-910.08,0.00045479,120]
[406542881,1771926803861,-910.08,0.00045479,120]
[406542882,1771926803871,-910.08,0.00045479,120]
[406542883,1771926803880,-910.08,0.00045479,120]
[406542884,1771926803889,-910.08,0.00045479,120]
[406542885,1771926803898,-910.08,0.00045479,120]
[406542886,1771926803907,-910.08,0.00045479,120]
[406542887,1771926803917,-910.08,0.00045479,120]
[406542888,1771926803926,-910.08,0.00045479,120]
[406542889,1771926803936,-910.08,0.00045479,120]
[406542890,1771926803946,-910.08,0.00045479,120]
[406542891,1771926803955,-910.08,0.00045479,120]
[406542892,1771926803967,-910.08,0.00045479,120]
[406542893,1771926803976,-910.08,0.00045479,120]
[406542894,1771926803986,-910.08,0.00045479,120]
[406542895,1771926803995,-910.08,0.00045479,120]
[406542896,1771926804004,-910.09768444,0.00045479,120]
[406542897,1771926804013,-171.58083618,0.00045479,120]
[406542898,1771926804022,-500.0,0.00045479,2]
[406542899,1771926804032,-500.0,0.00045479,2]
[406542900,1771926804041,-500.0,0.00045479,2]
[406542901,1771926804050,-500.0,0.00045479,2]
[406542902,1771926804059,-154.99599914,0.000455,90]
[406542903,1771926804070,-186.99444446,0.000455,120]
[406542904,1771926804079,-187.94447096,0.000455,120]
[406542905,1771926804088,-2589.96487152,0.000455,120]
[406542906,1771926804102,-150.0,0.000455,31]
[406542907,1771926804123,-213.0,0.0004554,120]
[406542908,1771926804142,-623.96,0.00045547,30]
[406542909,1771926804152,-821.56,0.00045548,2]
[406542910,1771926804162,-169.41,0.00045548,120]
[406542911,1771926804171,-170.21215549,0.00045548,120]
[406542912,1771926804180,-6140.72928219,0.00045548,30]
[406542913,1771926804189,-495.77004819,0.00045557,120]
[406542914,1771926804199,-153.39351647,0.00045557,120]
[406542915,1771926804208,-507.60581529,0.00045557,120]
[406542916,1771926804217,-2986.0,0.00045558,30]
[406542917,1771926804227,-3698395.02964604,0.00045558,10]
[406542918,1771926804235,-224.85812522,0.00045558,5]
[406542919,1771926804244,-1110.60017875,0.00045558,5]
[406542920,1771926804253,-360.99071538,0.00045558,2]
[406542921,1771926804262,-501.87456304,0.00045558,5]
[406542922,1771926804271,-200.44197112,0.00045558,2]
[406542923,1771926804279,-465.82876104,0.00045558,2]
[406542924,1771926804289,-981.77043054,0.00045558,2]
[406542925,1771926804298,-1086595.48213886,0.00045558,10]
[406542926,1771926804308,-31550.0,0.00045558,15]
[406542927,1771926804317,-158.38758784,0.00045558,2]
[406542928,1771926804326,-4850188.12888777,0.00045558,10]
[406542929,1771926804335,-970.91716901,0.00045558,5]
[406542930,1771926804344,-10986602.75109563,0.00045558,10]
[406542931,1771926804353,-893.15892014,0.00045558,2]
[406542932,1771926804365,-158.0,0.00045558,10]
[406542933,1771926804375,-943402.11623168,0.00045558,10]
[406542934,1771926804384,-3898.27833061,0.00045558,2]
[406542935,1771926804394,-6369833.04638607,0.00045558,10]
[406542936,1771926813160,500.0,0.000108,2]
[406542937,1771926813192,500.0,0.000108,2]
[406542938,1771926813219,500.0,0.000108,2]
[406542939,1771926813332,200.0,0.00011125,4]
[406542940,1771926813373,200.0,0.0001162,4]
[406542941,1771926813492,500.0,0.000108,2]
[406542942,1771926813539,500.0,0.000108,2]
[406542943,1771926813868,500.0,0.000108,2]
[406542944,1771926813898,323.91748752,0.000108,2]
[406542945,1771926901588,1200.0,0.00010799,2]
[406542946,1771926961417,300.0,0.00010799,2]
[406542947,1771926980654,1219.4,0.000108,2]
[406542948,1771927021363,300.0,0.00010799,2]
[406542949,1771927081697,300.0,0.00010799,2]
[406542951,1771927141405,300.0,0.00010799,2]
[406542952,1771927187371,1091.27,8.112e-05,2]
[406542953,1771927187579,1091.27,8.295e-05,2]
[406542954,1771927187748,1091.27,8.478e-05,2]
[406542955,1771927187943,1091.27,8.661e-05,2]
[406542956,1771927188382,1091.27,8.844e-05,2]
[406542957,1771927188590,924.26,9.027e-05,2]
[406542958,1771927188612,167.01,9.027e-05,2]
[406542959,1771927188788,1091.27,9.21e-05,2]
[406542960,1771927188977,1091.27,9.393e-05,2]
[406542961,1771927189164,1091.27,9.576e-05,2]
[406542962,1771927189342,1091.27,9.759e-05,2]
[406542963,1771927189528,1091.27,9.942e-05,2]
[406542964,1771927189723,1091.27,0.00010125,2]
[406542965,1771927189914,1091.27,0.00010308,2]
[406542966,1771927190107,1091.27,0.00010491,2]
[406542967,1771927190301,1091.27,0.00010674,2]
[406542968,1771927201675,11.57,0.00010799,2]
[406542969,1771927201697,1188.43,0.00010799,2]
[406542970,1771927203769,150.0,0.00010799,2]
[406542972,1771927261964,234.39641854,0.000108,2]
[406542973,1771927381407,300.0,0.00010799,2]
[406542974,1771927403099,500.0,0.00010546,3]
[406542975,1771927487429,609.6,0.00010884,4]
[406542976,1771927501296,300.0,0.00010799,2]
[406542977,1771927501329,1200.0,0.00010799,2]
[406542980,1771927541780,500.0,0.00010503,2]
[406542981,1771927563627,151.0,0.000108,2]
[406542982,1771927563668,230.5825631,0.000108,2]
[406542984,1771927624974,5745.60101836,0.00010788,2]
[406542985,1771927624998,10000.01,0.00010788,2]
[406542986,1771927625024,10000.01,0.00010788,2]
[406542987,1771927625048,10000.01,0.00010788,2]
[406542988,1771927625071,10000.01,0.00010788,2]
[406542989,1771927625095,10000.01,0.00010788,2]
[406542990,1771927625117,10000.01,0.00010788,2]
[406542991,1771927625139,10000.01,0.00010788,2]
[406542993,1771927657564,1080.03675652,0.000107,2]
[406542994,1771927676307,500.0,0.00010515,2]
[406542995,1771927713245,449.02411968,0.00010787,2]
[406542996,1771927714566,500.0,0.00010787,2]
[406542997,1771927714594,500.0,0.00010787,2]
[406542998,1771927714624,500.0,0.00010787,2]
[406542999,1771927714661,500.0,0.00010787,2]
[406543000,1771927714706,625.95457302,0.00010787,2]
[406543001,1771927714738,500.0,0.00010787,2]
[406543002,1771927714785,500.0,0.00010787,2]
[406543003,1771927714831,500.0,0.00010787,2]
[406543004,1771927714864,500.0,0.00010787,2]
[406543005,1771927714899,500.0,0.00010787,2]
[406543006,1771927714936,500.0,0.00010787,2]
[406543007,1771927714970,500.0,0.00010787,2]
[406543008,1771927715000,500.0,0.00010787,2]
[406543009,1771927715048,500.0,0.00010787,2]
[406543010,1771927715079,500.0,0.00010787,2]
[406543011,1771927715131,344.99455078,0.00010787,2]
[406543012,1771927715154,155.00544922,0.00010787,2]
[406543013,1771927715187,500.0,0.00010787,2]
[406543014,1771927715218,500.0,0.00010787,2]
[406543015,1771927715248,500.0,0.00010787,2]
[406543016,1771927715292,500.0,0.00010787,2]
[406543017,1771927715324,500.0,0.00010787,2]
[406543018,1771927715353,500.0,0.00010787,2]
[406543019,1771927715397,500.0,0.00010787,2]
[406543020,1771927715428,500.0,0.00010787,2]
[406543021,1771927715459,508.9950539,0.00010787,2]
[406543022,1771927715490,500.0,0.00010787,2]
[406543023,1771927715521,500.0,0.00010787,2]
[406543024,1771927715566,500.0,0.00010787,2]
[406543025,1771927715596,500.0,0.00010787,2]
[406543026,1771927715627,500.0,0.00010787,2]
[406543027,1771927715689,500.0,0.00010787,2]
[406543028,1771927715723,500.0,0.00010787,2]
[406543029,1771927715993,500.0,0.00010787,2]
[406543030,1771927716025,500.0,0.00010787,2]
[406543031,1771927716061,500.0,0.00010787,2]
[406543032,1771927716092,336.00949688,0.00010787,2]
[406543033,1771927716115,163.99050312,0.00010787,2]
[406543034,1771927716161,500.0,0.00010787,2]
[406543035,1771927716192,500.0,0.00010787,2]
[406543036,1771927716233,500.0,0.00010787,2]
[406543037,1771927716268,500.0,0.00010787,2]
[406543038,1771927716298,500.0,0.00010787,2]
[406543039,1771927716332,500.0,0.00010787,2]
[406543040,1771927716385,500.0,0.00010787,2]
[406543041,1771927716425,500.0,0.00010787,2]
[406543042,1771927716458,500.0,0.00010787,2]
[406543043,1771927718933,164.99040013,0.000107,2]
[406543044,1771927731631,175.74,8.412e-05,2]
[406543045,1771927734846,3274.29073311,0.00010688,2]
[406543046,1771927740933,1720.99836364,0.0001,2]
[406543047,1771927740955,10000.01,0.0001,2]
[406543048,1771927740978,8199.61787612,0.0001,2]
[406543049,1771927742758,150.0,0.00010787,2]
[406543050,1771927753883,349.61,0.00010594,2]
[406543051,1771927762389,403.43493763,0.00010688,2]
[406543052,1771927764896,1852.42,0.000106,2]
[406543054,1771927787715,720.02450436,0.00010688,2]
[406543055,1771927801711,1200.0,0.00010787,2]
[406543056,1771927803911,238.0,0.00010788,2]
[406543057,1771927814319,167.10673407,0.00010778,2]
[406543058,1771927832235,-1726.8840699,0.00010788,2]
[406543059,1771927832288,-6653.0766951,0.00010788,2]
[406543060,1771927832299,-6771.82257606,0.00010788,2]
[406543061,1771927832311,-29008.76825,0.00010788,2]
[406543062,1771927832322,-341.348914,0.00010788,2]
[406543063,1771927832342,-964.37123206,0.00010788,2]
[406543064,1771927832353,-729.40680892,0.00010788,2]
[406543065,1771927832396,-555.95984743,0.00010788,2]
[406543066,1771927832406,-2413.61553984,0.00010788,2]
[406543073,1771927838338,-3375089.07504833,0.00010788,2]
[406543074,1771927838348,-557.8906,0.00010788,2]
[406543075,1771927838358,-176.08251248,0.000108,2]
[406543076,1771927838367,-500.0,0.000108,2]
[406543077,1771927838376,-500.0,0.000108,2]
[406543078,1771927838386,-500.0,0.000108,2]
[406543079,1771927838395,-500.0,0.000108,2]
[406543080,1771927838405,-500.0,0.000108,2]
[406543081,1771927838414,-500.0,0.000108,2]
[406543082,1771927838423,-500.0,0.000108,2]
[406543083,1771927838432,-500.0,0.000108,2]
[406543084,1771927838441,-700.0,0.000108,2]
[406543085,1771927838450,-1091.27,0.00010857,2]
[406543086,1771927838460,-558.46,0.00010889,2]
[406543087,1771927838469,-112471.65,0.00010889,2]
[406543088,1771927838478,-500.0,0.000109,2]
[406543089,1771927838488,-4542.64996616,0.000109,2]
[406543090,1771927838497,-2500.0,0.00010924,2]
[406543091,1771927838506,-5003.57,0.00010927,2]
[406543092,1771927838516,-967.86848164,0.0001094,2]
[406543093,1771927838524,-151.0,0.00011018,2]
[406543094,1771927838534,-151.0,0.00011018,2]
[406543095,1771927838543,-151.0,0.00011018,2]
[406543096,1771927838552,-151.0,0.00011018,2]
[406543097,1771927838561,-151.0,0.00011018,2]
[406543098,1771927838571,-151.0,0.00011018,2]
[406543099,1771927838580,-151.0,0.00011018,2]
[406543100,1771927838589,-151.0,0.00011018,2]
[406543101,1771927838598,-151.0,0.00011018,2]
[406543103,1771927838608,-151.0,0.00011018,2]
[406543105,1771927838617,-151.0,0.00011018,2]
[406543106,1771927838626,-151.0,0.00011018,2]
[406543107,1771927838635,-151.0,0.00011018,2]
[406543108,1771927838644,-151.0,0.00011018,2]
[406543109,1771927838653,-151.0,0.00011018,2]
[406543111,1771927838663,-151.0,0.00011018,2]
[406543112,1771927838676,-198.0,0.00011018,2]
[406543113,1771927838685,-151.0,0.00011018,2]
[406543114,1771927838695,-151.0,0.00011018,2]
[406543115,1771927838704,-151.0,0.00011018,2]
[406543116,1771927838715,-151.0,0.00011018,2]
[406543117,1771927838724,-151.0,0.00011018,2]
[406543118,1771927838734,-151.0,0.00011018,2]
[406543119,1771927838744,-151.0,0.00011018,2]
[406543120,1771927838754,-151.0,0.00011018,2]
[406543121,1771927838763,-151.0,0.00011018,2]
[406543122,1771927838772,-151.0,0.00011018,2]
[406543123,1771927838781,-151.0,0.00011018,2]
[406543124,1771927838791,-151.0,0.00011018,2]
[406543125,1771927838800,-500.0,0.00011024,2]
[406543126,1771927838809,-3838.62,0.00011024,2]
[406543127,1771927838819,-499.99,0.00011024,2]
[406543128,1771927838828,-9999.99,0.00011024,2]
[406543129,1771927838837,-999.99,0.00011024,2]
[406543130,1771927838847,-150.99,0.00011024,2]
[406543131,1771927838857,-49999.99,0.00011024,2]
[406543132,1771927838866,-9999.99,0.00011024,2]
[406543133,1771927838876,-150.99,0.00011024,2]
[406543134,1771927838886,-1185.85,0.00011024,2]
[406543135,1771927838895,-9999.99,0.00011024,2]
[406543136,1771927838911,-9999.99,0.00011024,2]
[406543137,1771927838928,-14657.05,0.00011024,2]
[406543138,1771927838937,-516.03,0.00011024,2]
[406543139,1771927838947,-9999.99,0.00011024,2]
[406543140,1771927838957,-306.28,0.00011024,2]
[406543141,1771927838967,-9999.99,0.00011024,2]
[406543142,1771927838976,-1091.27,0.0001104,2]
[406543143,1771927838985,-5012.56758819,0.00011099,2]
[406543144,1771927839002,-5256.50556447,0.00011099,2]
[406543145,1771927839019,-29566.6299,0.00011125,2]
[406543146,1771927839028,-1000.0,0.00011125,2]
[406543147,1771927839036,-34222.9526,0.00011125,2]
[406543148,1771927839045,-1091.27,0.00011223,2]
[406543149,1771927839054,-261.0,0.00011265,2]
[406543150,1771927839063,-270.0,0.00011288,2]
[406543151,1771927839071,-500.0,0.00011298,2]
[406543152,1771927839081,-434.0,0.0001131,2]
[406543153,1771927839090,-992.0,0.00011328,2]
[406543154,1771927839099,-228.0,0.00011333,2]
[406543155,1771927839108,-1760.0,0.0001135,2]
[406543156,1771927839116,-420.0,0.00011355,2]
[406543157,1771927839125,-1238.0,0.00011373,2]
[406543158,1771927839134,-194.0,0.00011378,2]
[406543159,1771927839143,-1009.0,0.00011395,2]
[406543160,1771927839152,-486.0,0.000114,2]
[406543161,1771927839161,-1091.27,0.00011406,2]
[406543162,1771927839171,-270593.18381502,0.00011415,2]
[406543163,1771927839179,-1227.65,0.00011551,2]
[406543164,1771927839188,-500.0,0.00011572,2]
[406543165,1771927839197,-1091.27,0.00011589,2]
[406543166,1771927839206,-155.19,0.000118,2]
[406543167,1771927839216,-255.0,0.00011823,2]
[406543168,1771927839225,-902.02,0.00011834,2]
[406543169,1771927839234,-500.0,0.00011845,2]
[406543170,1771927839243,-19912.52,0.00011863,2]
[406543171,1771927839252,-1680.0,0.00011866,2]
[406543172,1771927839262,-250.0,0.00011867,2]
[406543173,1771927839271,-250.0,0.00011867,2]
[406543174,1771927839280,-193.0,0.0001188,2]
[406543175,1771927839289,-5000.0,0.0001188,2]
[406543176,1771927839299,-5000.0,0.0001188,2]
[406543177,1771927839307,-5000.0,0.0001188,2]
[406543178,1771927839316,-5000.0,0.0001188,2]
[406543179,1771927839325,-300.0,0.0001188,2]
[406543180,1771927839334,-300.0,0.0001188,2]
[406543181,1771927839343,-250.0,0.0001188,2]
[406543182,1771927839351,-160.61,0.00012,2]
[406543183,1771927839360,-500.0,0.00012119,2]
[406543184,1771927839369,-2366.46781732,0.00012154,2]
[406543185,1771927839378,-500.0,0.00012393,2]
[406543186,1771927839386,-175.74,0.00012618,2]
[406543187,1771927839396,-500.0,0.00012667,2]
[406543188,1771927839404,-150.0,0.00012901,2]
[406543189,1771927839413,-150.0,0.00012902,2]
[406543190,1771927839422,-150.0,0.00012903,2]
[406543191,1771927839431,-150.0,0.00012904,2]
[406543192,1771927839440,-150.0,0.00012905,2]
[406543193,1771927839449,-150.0,0.00012906,2]
[406543194,1771927839457,-150.0,0.00012907,2]
[406543195,1771927839466,-150.0,0.00012908,2]
[406543196,1771927839475,-150.0,0.00012909,2]
[406543197,1771927839483,-150.0,0.0001291,2]
[406543198,1771927839493,-150.0,0.00012911,2]
[406543199,1771927839501,-150.0,0.00012912,2]
[406543200,1771927839510,-206.290511,0.00012913,2]
[406543201,1771927839519,-500.0,0.00012941,2]
[406543202,1771927839527,-433.0,0.00012956,2]
[406543203,1771927839537,-1227.65,0.00012995,2]
[406543204,1771927839546,-213.19,0.00013049,2]
[406543205,1771927839555,-2351.0,0.00013053,2]
[406543206,1771927839564,-500.0,0.00013073,2]
[406543207,1771927839573,-500.0,0.00013073,2]
[406543208,1771927839581,-500.0,0.00013073,2]
[406543209,1771927839590,-500.0,0.00013073,2]
[406543210,1771927839599,-500.0,0.00013073,2]
[406543211,1771927839608,-500.0,0.00013073,2]
[406543212,1771927839617,-500.0,0.00013073,2]
[406543213,1771927839625,-500.0,0.00013073,2]
[406543214,1771927839634,-500.0,0.00013073,2]
[406543215,1771927839643,-500.0,0.00013073,2]
[406543216,1771927839651,-500.0,0.00013073,2]
[406543217,1771927839660,-500.0,0.00013101,2]
[406543218,1771927839670,-500.0,0.00013101,2]
[406543219,1771927839680,-500.0,0.00013101,2]
[406543220,1771927839689,-500.0,0.00013101,2]
[406543221,1771927839699,-500.0,0.00013101,2]
[406543222,1771927839708,-500.0,0.00013101,2]
[406543223,1771927839718,-500.0,0.00013101,2]
[406543224,1771927839727,-500.0,0.00013101,2]
[406543225,1771927839736,-500.0,0.00013101,2]
[406543226,1771927839746,-500.0,0.00013101,2]
[406543227,1771927839755,-500.0,0.00013101,2]
[406543228,1771927839764,-500.0,0.00013101,2]
[406543229,1771927839773,-500.0,0.00013101,2]
[406543230,1771927839782,-500.0,0.00013101,2]
[406543231,1771927839791,-500.0,0.00013101,2]
[406543232,1771927839800,-500.0,0.00013101,2]
[406543233,1771927839809,-500.0,0.00013101,2]
[406543234,1771927839818,-500.0,0.00013101,2]
[406543235,1771927839827,-500.0,0.00013101,2]
[406543236,1771927839836,-290.93,0.00013377,2]
[406543237,1771927839845,-501.70650637,0.00013621,2]
[406543238,1771927839854,-1000.0,0.00013621,2]
[406543239,1771927839863,-1000.0,0.00013621,2]
[406543240,1771927839872,-550.01264972,0.00013621,2]
[406543241,1771927839882,-500.0,0.00013621,2]
[406543242,1771927839891,-501.90132287,0.00013621,2]
[406543243,1771927839901,-500.0,0.00013621,2]
[406543244,1771927839910,-1000.0,0.00013621,2]
[406543245,1771927839919,-328.54094648,0.00013621,2]
[406543246,1771927839928,-235.93365693,0.00013621,2]
[406543247,1771927839936,-500.0,0.00013621,2]
[406543248,1771927839945,-500.0,0.00013698,2]
[406543249,1771927839954,-500.0,0.00013698,2]
[406543250,1771927839964,-500.0,0.00013698,2]
[406543251,1771927839974,-500.0,0.00013698,2]
[406543252,1771927839983,-500.0,0.00013698,2]
[406543253,1771927839992,-500.0,0.00013698,2]
[406543254,1771927840000,-500.0,0.00013698,2]
[406543255,1771927840009,-500.0,0.00013698,2]
[406543256,1771927840019,-500.0,0.00013698,2]
[406543258,1771927840028,-500.0,0.00013698,2]
[406543259,1771927840037,-500.0,0.00013698,2]
[406543260,1771927840045,-500.0,0.00013698,2]
[406543261,1771927840054,-500.0,0.00013698,2]
[406543262,1771927840062,-500.0,0.00013698,2]
[406543263,1771927840072,-388.13,0.00013698,2]
[406543264,1771927840080,-500.0,0.00013698,2]
[406543265,1771927840089,-500.0,0.00013698,2]
[406543266,1771927840098,-500.0,0.00013698,2]
[406543267,1771927840107,-500.0,0.00013698,2]
[406543268,1771927840115,-500.0,0.00013698,2]
[406543269,1771927840124,-500.0,0.00013698,2]
[406543270,1771927840132,-500.0,0.00013698,2]
[406543271,1771927840141,-500.0,0.00013698,2]
[406543272,1771927840150,-500.0,0.00013698,2]
[406543273,1771927840158,-500.0,0.00013698,2]
[406543274,1771927840167,-500.0,0.00013698,2]
[406543275,1771927840175,-500.0,0.00013698,2]
[406543276,1771927840184,-500.0,0.00013698,2]
[406543277,1771927840193,-500.0,0.00013698,2]
[406543278,1771927840202,-635.23544103,0.00013698,2]
[406543279,1771927840211,-500.0,0.00013698,2]
[406543280,1771927840221,-500.0,0.00013698,2]
[406543281,1771927840230,-500.0,0.00013698,2]
[406543282,1771927840239,-500.0,0.00013698,2]
[406543283,1771927840248,-500.0,0.00013698,2]
[406543284,1771927840257,-500.0,0.00013698,2]
[406543285,1771927840266,-500.0,0.00013698,2]
[406543286,1771927840276,-500.0,0.00013698,2]
[406543287,1771927840285,-500.0,0.00013698,2]
[406543288,1771927840295,-316.6988027,0.00013698,2]
[406543289,1771927840303,-500.0,0.00013698,2]
[406543290,1771927840313,-500.0,0.00013698,2]
[406543291,1771927840322,-632.93,0.00013698,2]
[406543292,1771927840332,-632.93,0.00013698,2]
[406543293,1771927840341,-500.0,0.00013698,2]
[406543294,1771927840350,-500.0,0.00013698,2]
[406543295,1771927840359,-500.0,0.00013698,2]
[406543296,1771927840368,-500.0,0.00013698,2]
[406543297,1771927840377,-500.0,0.00013698,2]
[406543298,1771927840386,-500.0,0.00013698,2]
[406543299,1771927840395,-1057.48,0.00013698,2]
[406543300,1771927840404,-1057.48,0.00013698,2]
[406543301,1771927840413,-500.0,0.00013698,2]
[406543302,1771927840422,-500.0,0.00013698,2]
[406543303,1771927840431,-500.0,0.00013698,2]
[406543304,1771927840441,-500.0,0.00013698,2]
[406543305,1771927840450,-500.0,0.00013698,2]
[406543306,1771927840459,-500.0,0.00013698,2]
[406543307,1771927840469,-500.0,0.00013698,2]
[406543308,1771927840478,-500.0,0.00013698,2]
[406543309,1771927840487,-302.70589394,0.00013699,2]
[406543310,1771927840496,-501.16839178,0.00013699,2]
[406543311,1771927840505,-500.0,0.00013699,2]
[406543312,1771927840514,-511.18624479,0.00013699,2]
[406543313,1771927840523,-503.99220136,0.00013699,2]
[406543314,1771927840532,-504.16390705,0.00013699,2]
[406543315,1771927840542,-500.0,0.00013699,2]
[406543316,1771927840551,-168.61283304,0.00013699,2]
[406543317,1771927840561,-599.206441,0.00013699,2]
[406543318,1771927840570,-500.0,0.00013699,2]
[406543319,1771927840579,-501.93759306,0.00013699,2]
[406543320,1771927840589,-500.0,0.00013699,2]
[406543321,1771927840599,-500.0,0.00013699,2]
[406543322,1771927840608,-500.0,0.00013699,2]
[406543323,1771927840617,-509.0327441,0.00013699,2]
[406543324,1771927840626,-500.0,0.00013699,2]
[406543325,1771927840636,-500.0,0.00013699,2]
[406543326,1771927840644,-304.38005979,0.00013699,2]
[406543327,1771927840653,-487.94127816,0.00013699,2]
[406543328,1771927840663,-503.60394883,0.00013699,2]
[406543329,1771927840675,-209.6165406,0.00013699,2]
[406543330,1771927840684,-170.38160206,0.00013699,2]
[406543331,1771927840693,-500.0,0.00013699,2]
[406543332,1771927840703,-500.0,0.00013699,2]
[406543333,1771927840714,-501.44667058,0.00013699,2]
[406543334,1771927840723,-9999.99,0.00013699,2]
[406543335,1771927840934,-1413.37,0.00013699,2]
[406543336,1771927840944,-150.0,0.000137,2]